fUST/lending_fUST_20240823
["ID","MTS","AMOUNT","RATE_DAILY","PERIOD"]
[335656738,1724403061586,-4069.65,0.00016712,2]
[335656739,1724403061596,-500.0,0.00016712,2]
[335656740,1724403061606,-955.14,0.00016712,2]
[335656741,1724403061615,-500.0,0.00016712,2]
[335656742,1724403061625,-151.0,0.00016712,2]
[335656743,1724403061635,-500.0,0.00016712,2]
[335656744,1724403061644,-924.08,0.00016712,2]
[335656745,1724403061654,-500.0,0.00016712,2]
[335656746,1724403061663,-519.74873282,0.00016712,2]
[335656747,1724403061672,-500.0,0.00016712,2]
[335656748,1724403061682,-585.08,0.00016712,2]
[335656749,1724403061691,-500.0,0.00016712,2]
[335656750,1724403061701,-491.43908943,0.00016712,2]
[335656751,1724403061710,-500.0,0.00016712,2]
[335656752,1724403061721,-433.479512,0.00016712,2]
[335656753,1724403061731,-612.06,0.00016712,2]
[335656754,1724403061740,-522.89377065,0.00016712,2]
[335656755,1724403061750,-500.0,0.00016712,2]
[335656756,1724403061760,-6354.88,0.00016712,2]
[335656757,1724403061770,-433.479512,0.00016712,2]
[335656758,1724403061781,-500.0,0.00016712,2]
[335656759,1724403061791,-1530.13,0.00016712,2]
[335656760,1724403061800,-500.0,0.00016712,2]
[335656761,1724403061810,-500.0,0.00016712,2]
[335656762,1724403061833,-500.0,0.00016773,2]
[335656763,1724403061844,-500.0,0.00016773,2]
[335656764,1724403061855,-500.0,0.00016773,2]
[335656765,1724403061866,-500.0,0.00016773,2]
[335656766,1724403061876,-200.29199372,0.00016773,2]
[335656767,1724403061887,-500.0,0.00016773,2]
[335656768,1724403061897,-500.0,0.00016773,2]
[335656769,1724403061907,-1760.83578283,0.00016855,2]
[335656770,1724403061917,-155.0,0.0001687,2]
[335656771,1724403061927,-953.84767115,0.00016915,2]
[335656772,1724403061937,-150.0,0.00016973,2]
[335656773,1724403061948,-275.402778,0.00016986,2]
[335656774,1724403061959,-275.402778,0.00016986,2]
[335656775,1724403061969,-275.402778,0.00016986,2]
[335656776,1724403061980,-275.402778,0.00016986,2]
[335656777,1724403061990,-224.984884,0.00016986,2]
[335656778,1724403062000,-224.984884,0.00016986,2]
[335656779,1724403062009,-242.874,0.00016986,2]
[335656780,1724403062020,-242.874,0.00016986,2]
[335656781,1724403062032,-242.874,0.00016986,2]
[335656782,1724403062042,-242.874,0.00016986,2]
[335656783,1724403062053,-292.81319,0.00016986,2]
[335656784,1724403062063,-292.81319,0.00016986,2]
[335656785,1724403062074,-292.81319,0.00016986,2]
[335656786,1724403062084,-292.81319,0.00016986,2]
[335656787,1724403062095,-151.0,0.00016986,2]
[335656788,1724403062105,-151.0,0.00016986,2]
[335656789,1724403062114,-363.046496,0.00016986,2]
[335656790,1724403062125,-363.046496,0.00016986,2]
[335656791,1724403062135,-363.046496,0.00016986,2]
[335656792,1724403062144,-363.046496,0.00016986,2]
[335656793,1724403062155,-213.437621,0.00016986,2]
[335656794,1724403062165,-213.437621,0.00016986,2]
[335656795,1724403062174,-213.437621,0.00016986,2]
[335656796,1724403062185,-213.437621,0.00016986,2]
[335656797,1724403062201,-167.312209,0.00016986,2]
[335656798,1724403062220,-167.312209,0.00016986,2]
[335656799,1724403062232,-167.312209,0.00016986,2]
[335656800,1724403062242,-167.312209,0.00016986,2]
[335656801,1724403062252,-151.0,0.00016986,2]
[335656802,1724403062264,-151.0,0.00016986,2]
[335656803,1724403062274,-151.0,0.00016986,2]
[335656804,1724403062286,-151.0,0.00016986,2]
[335656805,1724403062299,-176.79128,0.00016986,2]
[335656806,1724403062311,-176.79128,0.00016986,2]
[335656807,1724403062321,-176.79128,0.00016986,2]
[335656808,1724403062331,-176.79128,0.00016986,2]
[335656809,1724403062342,-252.982003,0.00016986,2]
[335656810,1724403062352,-252.982003,0.00016986,2]
[335656811,1724403062362,-252.982003,0.00016986,2]
[335656812,1724403062373,-252.982003,0.00016986,2]
[335656813,1724403062383,-227.567314,0.00016986,2]
[335656814,1724403062393,-227.567314,0.00016986,2]
[335656815,1724403062403,-151.0,0.00016986,2]
[335656816,1724403062412,-151.0,0.00016986,2]
[335656817,1724403062423,-151.0,0.00016986,2]
[335656818,1724403062433,-151.0,0.00016986,2]
[335656819,1724403062445,-297.123998,0.00016986,2]
[335656820,1724403062457,-297.123998,0.00016986,2]
[335656821,1724403062468,-297.123998,0.00016986,2]
[335656822,1724403062478,-297.123998,0.00016986,2]
[335656823,1724403062488,-151.0,0.00016986,2]
[335656824,1724403062498,-151.0,0.00016986,2]
[335656825,1724403062508,-170.907634,0.00016986,2]
[335656826,1724403062518,-7566.65662,0.00016986,2]
[335656827,1724403062528,-170.907634,0.00016986,2]
[335656828,1724403062541,-7566.65662,0.00016986,2]
[335656829,1724403062552,-170.907634,0.00016986,2]
[335656830,1724403062563,-7566.65662,0.00016986,2]
[335656831,1724403062574,-170.907634,0.00016986,2]
[335656832,1724403062584,-7566.65662,0.00016986,2]
[335656833,1724403062593,-151.0,0.00016986,2]
[335656834,1724403062603,-151.0,0.00016986,2]
[335656835,1724403062613,-151.0,0.00016986,2]
[335656836,1724403062623,-151.0,0.00016986,2]
[335656837,1724403062633,-151.0,0.00016986,2]
[335656838,1724403062642,-151.0,0.00016986,2]
[335656839,1724403062652,-500.0,0.00016986,2]
[335656840,1724403062663,-151.0,0.00016986,2]
[335656841,1724403062674,-151.0,0.00016986,2]
[335656842,1724403062685,-817.224778,0.00016986,2]
[335656843,1724403062696,-817.224778,0.00016986,2]
[335656844,1724403062708,-500.0,0.00016986,2]
[335656845,1724403062718,-500.0,0.00016986,2]
[335656846,1724403062729,-500.0,0.00016986,2]
[335656847,1724403062740,-589.03,0.00016986,2]
[335656848,1724403062751,-500.0,0.00016986,2]
[335656849,1724403062761,-635.89,0.00016986,2]
[335656850,1724403062771,-500.0,0.00016986,2]
[335656851,1724403062781,-500.0,0.00016986,2]
[335656852,1724403062791,-500.0,0.00016986,2]
[335656853,1724403062801,-500.0,0.00016986,2]
[335656854,1724403062811,-500.0,0.00016986,2]
[335656855,1724403062823,-500.0,0.00016986,2]
[335656856,1724403062833,-500.0,0.00016986,2]
[335656857,1724403062844,-1069.06,0.00016986,2]
[335656858,1724403062855,-500.0,0.00016986,2]
[335656859,1724403062866,-500.0,0.00016986,2]
[335656860,1724403062877,-500.0,0.00016986,2]
[335656861,1724403062888,-707.74,0.00016986,2]
[335656862,1724403062901,-500.0,0.00016986,2]
[335656863,1724403062913,-638.02,0.00016986,2]
[335656864,1724403062924,-500.0,0.00016986,2]
[335656865,1724403062935,-500.0,0.00016986,2]
[335656866,1724403062946,-590.74,0.00016986,2]
[335656867,1724403062958,-263.732356,0.00016986,2]
[335656868,1724403062969,-500.0,0.00016986,2]
[335656869,1724403062980,-500.0,0.00016986,2]
[335656870,1724403062991,-948.73,0.00016986,2]
[335656871,1724403063001,-500.0,0.00016986,2]
[335656872,1724403063012,-500.0,0.00016986,2]
[335656873,1724403063021,-500.0,0.00016986,2]
[335656874,1724403063032,-500.0,0.00016986,2]
[335656875,1724403063043,-500.0,0.00016986,2]
[335656876,1724403063054,-500.0,0.00016986,2]
[335656877,1724403063064,-736.36,0.00016986,2]
[335656878,1724403063075,-500.0,0.00016986,2]
[335656879,1724403063085,-500.0,0.00016986,2]
[335656880,1724403063095,-500.0,0.00016986,2]
[335656881,1724403063106,-546.2,0.00016986,2]
[335656882,1724403063116,-191.252098,0.00016986,2]
[335656883,1724403063126,-500.0,0.00016986,2]
[335656884,1724403063137,-191.252098,0.00016986,2]
[335656885,1724403063148,-500.0,0.00016986,2]
[335656886,1724403063158,-500.0,0.00016986,2]
[335656887,1724403063168,-191.252098,0.00016986,2]
[335656888,1724403063179,-191.252098,0.00016986,2]
[335656889,1724403063190,-500.0,0.00016986,2]
[335656890,1724403063204,-500.0,0.00016986,2]
[335656891,1724403063214,-500.0,0.00016986,2]
[335656892,1724403063224,-500.0,0.00016986,2]
[335656893,1724403063234,-500.0,0.00016986,2]
[335656894,1724403063244,-151.0,0.00016986,2]
[335656895,1724403063255,-151.0,0.00016986,2]
[335656896,1724403063265,-151.0,0.00016986,2]
[335656897,1724403063276,-151.0,0.00016986,2]
[335656898,1724403063287,-776.95,0.00016986,2]
[335656899,1724403063297,-500.0,0.00016986,2]
[335656900,1724403063308,-500.0,0.00016986,2]
[335656901,1724403063318,-500.0,0.00016986,2]
[335656902,1724403063330,-510.32112527,0.00016986,2]
[335656903,1724403063340,-500.0,0.00016986,2]
[335656904,1724403063351,-500.0,0.00016986,2]
[335656905,1724403063361,-500.0,0.00016986,2]
[335656906,1724403063371,-500.0,0.00016986,2]
[335656907,1724403063382,-500.0,0.00016986,2]
[335656908,1724403063393,-500.0,0.00016986,2]
[335656909,1724403063404,-500.0,0.00016986,2]
[335656910,1724403063414,-500.0,0.00016986,2]
[335656911,1724403063424,-151.0,0.00016986,2]
[335656912,1724403063436,-500.0,0.00016986,2]
[335656913,1724403063448,-151.0,0.00016986,2]
[335656914,1724403063458,-500.0,0.00016986,2]
[335656915,1724403063468,-1055.96,0.00016986,2]
[335656916,1724403063478,-652.96,0.00016986,2]
[335656917,1724403063489,-458.5888894,0.00016986,2]
[335656918,1724403063499,-1361.79,0.00016986,2]
[335656919,1724403063509,-500.0,0.00016986,2]
[335656920,1724403063519,-500.0,0.00016986,2]
[335656921,1724403063530,-500.0,0.00016986,2]
[335656922,1724403063541,-500.0,0.00016986,2]
[335656923,1724403063551,-542.16,0.00016986,2]
[335656924,1724403063562,-844.04,0.00016986,2]
[335656925,1724403063573,-500.0,0.00016986,2]
[335656926,1724403063583,-450.03357233,0.00016986,2]
[335656927,1724403063594,-473.52755537,0.00016986,2]
[335656928,1724403063605,-500.0,0.00016986,2]
[335656929,1724403063615,-500.0,0.00016986,2]
[335656930,1724403063624,-500.0,0.00016986,2]
[335656931,1724403063634,-596.36,0.00016986,2]
[335656932,1724403063645,-751.42,0.00016986,2]
[335656933,1724403063655,-500.0,0.00016986,2]
[335656934,1724403063665,-2304.76,0.00016986,2]
[335656935,1724403063675,-727.4,0.00016986,2]
[335656936,1724403063686,-500.0,0.00016986,2]
[335656937,1724403063697,-500.0,0.00016986,2]
[335656938,1724403063706,-500.0,0.00016986,2]
[335656939,1724403063716,-570.8,0.00016986,2]
[335656940,1724403063727,-500.0,0.00016986,2]
[335656941,1724403063738,-1503.89,0.00016986,2]
[335656942,1724403063748,-500.0,0.00016986,2]
[335656943,1724403063757,-500.0,0.00016986,2]
[335656944,1724403063767,-500.0,0.00016986,2]
[335656945,1724403063777,-500.0,0.00016986,2]
[335656946,1724403063789,-500.0,0.00016986,2]
[335656947,1724403063799,-500.0,0.00016986,2]
[335656948,1724403063810,-500.0,0.00016986,2]
[335656949,1724403063820,-354.846489,0.00016986,2]
[335656950,1724403063831,-354.846489,0.00016986,2]
[335656951,1724403063842,-500.0,0.00016986,2]
[335656952,1724403063851,-500.0,0.00016986,2]
[335656953,1724403063861,-500.0,0.00016986,2]
[335656954,1724403063871,-354.846489,0.00016986,2]
[335656955,1724403063880,-354.846489,0.00016986,2]
[335656956,1724403063891,-500.0,0.00016986,2]
[335656957,1724403063901,-500.0,0.00016986,2]
[335656958,1724403063911,-500.0,0.00016986,2]
[335656959,1724403063921,-730.96,0.00016986,2]
[335656960,1724403063932,-500.0,0.00016986,2]
[335656961,1724403063943,-500.0,0.00016986,2]
[335656962,1724403063953,-500.0,0.00016986,2]
[335656963,1724403063963,-500.0,0.00016986,2]
[335656964,1724403063973,-500.0,0.00016986,2]
[335656965,1724403063983,-500.0,0.00016986,2]
[335656966,1724403063993,-507.93197011,0.00016986,2]
[335656967,1724403064003,-500.0,0.00016986,2]
[335656968,1724403064014,-500.0,0.00016986,2]
[335656969,1724403064024,-151.0,0.00016986,2]
[335656970,1724403064034,-291.625478,0.00016986,2]
[335656971,1724403064044,-500.0,0.00016986,2]
[335656972,1724403064055,-797.73,0.00016986,2]
[335656973,1724403064065,-506.45474192,0.00016986,2]
[335656974,1724403064076,-769.45,0.00016986,2]
[335656975,1724403064086,-500.0,0.00016986,2]
[335656976,1724403064097,-500.0,0.00016986,2]
[335656977,1724403064107,-500.0,0.00016986,2]
[335656978,1724403064118,-500.0,0.00016986,2]
[335656979,1724403064128,-500.0,0.00016986,2]
[335656980,1724403064139,-500.0,0.00016986,2]
[335656981,1724403064148,-500.0,0.00016986,2]
[335656982,1724403064159,-500.0,0.00016986,2]
[335656983,1724403064169,-500.0,0.00016986,2]
[335656984,1724403064179,-1944.28,0.00016986,2]
[335656985,1724403064190,-913.029573,0.00016986,2]
[335656986,1724403064203,-913.029573,0.00016986,2]
[335656987,1724403064213,-500.0,0.00016986,2]
[335656988,1724403064223,-906.38,0.00016986,2]
[335656989,1724403064233,-173.46591,0.00016986,2]
[335656990,1724403064244,-173.46591,0.00016986,2]
[335656991,1724403064254,-500.0,0.00016986,2]
[335656992,1724403064264,-173.46591,0.00016986,2]
[335656993,1724403064274,-151.0,0.00016986,2]
[335656994,1724403064289,-500.0,0.00016986,2]
[335656995,1724403064299,-173.46591,0.00016986,2]
[335656996,1724403064309,-151.0,0.00016986,2]
[335656997,1724403064319,-151.0,0.00016986,2]
[335656998,1724403064330,-151.0,0.00016986,2]
[335656999,1724403064341,-500.0,0.00016986,2]
[335657000,1724403064350,-1362.24,0.00016986,2]
[335657001,1724403064360,-500.0,0.00016986,2]
[335657002,1724403064370,-500.0,0.00016986,2]
[335657003,1724403064381,-386.91903079,0.00016986,2]
[335657004,1724403064392,-746.38,0.00016986,2]
[335657005,1724403064402,-725.1,0.00016986,2]
[335657006,1724403064412,-724.68,0.00016986,2]
[335657007,1724403064422,-2913.979731,0.00016986,2]
[335657008,1724403064432,-2913.979731,0.00016986,2]
[335657009,1724403064442,-874.45,0.00016986,2]
[335657010,1724403064451,-500.0,0.00016986,2]
[335657011,1724403064462,-2913.979731,0.00016986,2]
[335657012,1724403064471,-2913.979731,0.00016986,2]
[335657013,1724403064482,-500.0,0.00016986,2]
[335657014,1724403064492,-718.02,0.00016986,2]
[335657015,1724403064693,-727.56,0.00016986,2]
[335657016,1724403064714,-500.0,0.00016986,2]
[335657017,1724403064725,-500.0,0.00016986,2]
[335657018,1724403064736,-500.0,0.00016986,2]
[335657019,1724403064747,-500.0,0.00016986,2]
[335657020,1724403064760,-1146.03,0.00016986,2]
[335657021,1724403064769,-500.0,0.00016986,2]
[335657022,1724403064779,-500.0,0.00016986,2]
[335657023,1724403064789,-2652.830539,0.00016986,2]
[335657024,1724403064799,-2652.830539,0.00016986,2]
[335657025,1724403064809,-500.0,0.00016986,2]
[335657026,1724403064819,-2652.830539,0.00016986,2]
[335657027,1724403064829,-500.0,0.00016986,2]
[335657028,1724403064839,-2652.830539,0.00016986,2]
[335657029,1724403064850,-500.0,0.00016986,2]
[335657030,1724403064860,-500.0,0.00016986,2]
[335657031,1724403064871,-763.05,0.00016986,2]
[335657032,1724403064880,-768.96,0.00016986,2]
[335657033,1724403064890,-500.0,0.00016986,2]
[335657034,1724403064900,-681.47,0.00016986,2]
[335657035,1724403064913,-771.88,0.00016986,2]
[335657036,1724403064924,-500.0,0.00016986,2]
[335657037,1724403064936,-500.0,0.00016986,2]
[335657038,1724403064948,-500.0,0.00016986,2]
[335657039,1724403064960,-500.0,0.00016986,2]
[335657040,1724403064970,-500.0,0.00016986,2]
[335657041,1724403064980,-1569.271732,0.00016986,2]
[335657042,1724403064990,-1569.271732,0.00016986,2]
[335657043,1724403065002,-2442.372554,0.00016986,2]
[335657044,1724403065014,-859.99,0.00016986,2]
[335657045,1724403065026,-500.0,0.00016986,2]
[335657046,1724403065037,-2442.372554,0.00016986,2]
[335657047,1724403065047,-3220.66,0.00016986,2]
[335657048,1724403065057,-2160.1,0.00016986,2]
[335657049,1724403065066,-500.0,0.00016986,2]
[335657050,1724403065076,-2442.372554,0.00016986,2]
[335657051,1724403065085,-2442.372554,0.00016986,2]
[335657052,1724403065095,-231.231403,0.00016986,2]
[335657053,1724403065104,-231.231403,0.00016986,2]
[335657054,1724403065115,-500.0,0.00016986,2]
[335657055,1724403065125,-500.0,0.00016986,2]
[335657056,1724403065136,-231.231403,0.00016986,2]
[335657057,1724403065146,-231.231403,0.00016986,2]
[335657058,1724403065156,-500.0,0.00016986,2]
[335657059,1724403065166,-500.0,0.00016986,2]
[335657060,1724403065175,-500.0,0.00016986,2]
[335657061,1724403065185,-674.49,0.00016986,2]
[335657062,1724403065195,-500.0,0.00016986,2]
[335657063,1724403065208,-500.0,0.00016986,2]
[335657064,1724403065218,-500.0,0.00016986,2]
[335657065,1724403065227,-597.44,0.00016986,2]
[335657066,1724403065237,-500.0,0.00016986,2]
[335657067,1724403065247,-500.0,0.00016986,2]
[335657068,1724403065257,-865.58,0.00016986,2]
[335657069,1724403065267,-509.92522481,0.00016986,2]
[335657070,1724403065277,-2016.03,0.00016986,2]
[335657071,1724403065286,-500.0,0.00016986,2]
[335657072,1724403065296,-500.0,0.00016986,2]
[335657073,1724403065306,-500.0,0.00016986,2]
[335657074,1724403065316,-500.0,0.00016986,2]
[335657075,1724403065326,-707.7,0.00016986,2]
[335657076,1724403065336,-500.0,0.00016986,2]
[335657077,1724403065346,-500.0,0.00016986,2]
[335657078,1724403065355,-500.0,0.00016986,2]
[335657079,1724403065365,-654.13,0.00016986,2]
[335657080,1724403065375,-756.97,0.00016986,2]
[335657081,1724403065384,-500.0,0.00016986,2]
[335657082,1724403065394,-151.0,0.00016986,2]
[335657083,1724403065404,-151.0,0.00016986,2]
[335657084,1724403065413,-500.0,0.00016986,2]
[335657085,1724403065423,-500.0,0.00016986,2]
[335657086,1724403065432,-398.6534244,0.00016986,2]
[335657087,1724403065442,-5671.560237,0.00016986,2]
[335657088,1724403065452,-311.35422224,0.00016986,2]
[335657089,1724403065461,-5671.560237,0.00016986,2]
[335657090,1724403065471,-556.58,0.00016986,2]
[335657091,1724403065480,-500.0,0.00016986,2]
[335657092,1724403065490,-5671.560237,0.00016986,2]
[335657093,1724403065500,-5671.560237,0.00016986,2]
[335657094,1724403065509,-573.35,0.00016986,2]
[335657095,1724403065519,-583.81,0.00016986,2]
[335657096,1724403065529,-700.37,0.00016986,2]
[335657097,1724403065540,-500.0,0.00016986,2]
[335657098,1724403065559,-500.0,0.00016986,2]
[335657099,1724403065569,-766.650568,0.00016986,2]
[335657100,1724403065578,-584.55998011,0.00016986,2]
[335657101,1724403066309,-843.82,0.00016438,2]
[335657102,1724403066319,-843.82,0.00016438,2]
[335657103,1724403066329,-843.82,0.00016438,2]
[335657104,1724403066339,-843.82,0.00016438,2]
[335657105,1724403066349,-843.82,0.00016438,2]
[335657106,1724403066359,-843.82,0.00016438,2]
[335657107,1724403066369,-843.82,0.00016438,2]
[335657108,1724403066380,-843.82,0.00016438,2]
[335657109,1724403066390,-182.09058789,0.00016986,2]
[335657110,1724403066400,-500.0,0.00016986,2]
[335657111,1724403066410,-2001.19,0.00016986,2]
[335657112,1724403066420,-766.650568,0.00016986,2]
[335657113,1724403066430,-766.650568,0.00016986,2]
[335657114,1724403066440,-3904.832813,0.00016986,2]
[335657115,1724403066449,-3904.832813,0.00016986,2]
[335657116,1724403066459,-500.0,0.00016986,2]
[335657117,1724403066469,-500.0,0.00016986,2]
[335657118,1724403066479,-500.0,0.00016986,2]
[335657119,1724403066489,-3904.832813,0.00016986,2]
[335657120,1724403066499,-3904.832813,0.00016986,2]
[335657121,1724403066508,-500.0,0.00016986,2]
[335657122,1724403066520,-500.0,0.00016986,2]
[335657123,1724403066531,-500.0,0.00016986,2]
[335657124,1724403066543,-500.0,0.00016986,2]
[335657125,1724403066554,-500.0,0.00016986,2]
[335657126,1724403066564,-596.1,0.00016986,2]
[335657127,1724403066574,-502.11,0.00016986,2]
[335657128,1724403066583,-2428.32,0.00016986,2]
[335657129,1724403066593,-238.68484419,0.00016986,2]
[335657130,1724403066603,-658.47,0.00016986,2]
[335657131,1724403066612,-894.0,0.00016986,2]
[335657132,1724403066622,-500.0,0.00016986,2]
[335657133,1724403066631,-1154.74,0.00016986,2]
[335657134,1724403066642,-500.0,0.00016986,2]
[335657135,1724403066652,-707.47,0.00016986,2]
[335657136,1724403066661,-500.0,0.00016986,2]
[335657137,1724403066671,-500.0,0.00016986,2]
[335657138,1724403066680,-500.0,0.00016986,2]
[335657139,1724403066690,-928.93,0.00016986,2]
[335657140,1724403066699,-500.0,0.00016986,2]
[335657141,1724403066708,-882.47,0.00016986,2]
[335657142,1724403066718,-500.0,0.00016986,2]
[335657143,1724403066728,-500.0,0.00016986,2]
[335657144,1724403066738,-2129.65,0.00016986,2]
[335657145,1724403066747,-500.0,0.00016986,2]
[335657146,1724403066757,-1328.93,0.00016986,2]
[335657147,1724403066766,-500.0,0.00016986,2]
[335657148,1724403066777,-500.0,0.00016986,2]
[335657149,1724403066786,-500.0,0.00016986,2]
[335657150,1724403066796,-500.0,0.00016986,2]
[335657151,1724403066805,-1065.51,0.00016986,2]
[335657152,1724403066815,-3302.996526,0.00016986,2]
[335657153,1724403066824,-3302.996526,0.00016986,2]
[335657154,1724403066834,-920.71,0.00016986,2]
[335657155,1724403066844,-725.5,0.00016986,2]
[335657156,1724403066853,-3302.996526,0.00016986,2]
[335657157,1724403066863,-3302.996526,0.00016986,2]
[335657158,1724403066872,-703.8020339,0.00016986,2]
[335657159,1724403069115,258.33917251,0.00027,120]
[335657160,1724403070880,258.33917251,0.00027,120]
[335657161,1724403073249,398.03,0.00010959,2]
[335657163,1724403118635,258.33917251,0.00025,120]
[335657164,1724403120185,200.05206441,0.00016986,60]
[335657165,1724403141134,1754.82103027,0.00010959,2]
[335657166,1724403179453,200.05206441,0.00013283,60]
[335657168,1724403193662,397.47631349,0.00025,120]
[335657169,1724403234636,200.05206441,0.00013283,60]
[335657170,1724403235988,5000.0,0.00025,60]
[335661102,1724403382574,-300.0,0.00012322,2]
[335661103,1724403382596,-300.0,0.00012322,2]
[335661104,1724403382620,-24300.0,0.00012323,2]
[335661105,1724403408732,200.05206441,0.00025,60]
[335661106,1724403453761,200.05206441,0.00014937,60]
[335661107,1724403555330,174.66811184,0.00027,120]
[335661108,1724403560272,200.05206441,0.00014937,60]
[335661110,1724403658793,331.66712136,0.00014937,60]
[335661114,1724403788377,5000.0,0.00027,120]
[335661116,1724403888985,3093.28626151,0.00011999,2]
[335661117,1724403892306,2128.07001891,0.00011999,2]
[335661118,1724403969639,186.49873971,0.00011999,2]
[335661120,1724404032919,303.0,0.000178,120]
[335661121,1724404033376,303.0,0.0001779,120]
[335661122,1724404033859,303.0,0.0001778,120]
[335661123,1724404034168,-157.828094,0.0001218,2]
[335661124,1724404034191,-300.0,0.00012182,2]
[335661125,1724404034212,-300.0,0.00012182,2]
[335661126,1724404034234,-226.01340842,0.00012183,2]
[335661127,1724404034307,303.0,0.00018789,120]
[335661128,1724404034783,303.0,0.00018779,120]
[335661129,1724404035434,303.0,0.00018769,120]
[335661130,1724404036047,303.0,0.0002389,120]
[335661131,1724404036268,303.0,0.0002388,120]
[335661133,1724404041134,-15494.76943858,0.00012183,2]
[335661134,1724404046669,-9179.217153,0.00012183,2]
[335661135,1724404046694,-157.828094,0.00012271,2]
[335661136,1724404046716,-157.828094,0.00012362,2]
[335661137,1724404046739,-157.828094,0.00012452,2]
[335661138,1724404046761,-157.828094,0.00012543,2]
[335661139,1724404046782,-2210.54018683,0.00012551,2]
[335661140,1724404046806,-157.828094,0.00012634,2]
[335661141,1724404046829,-157.828094,0.00012725,2]
[335661142,1724404046851,-1064.31105248,0.00012779,2]
[335661143,1724404047208,-435.68894752,0.00012779,2]
[335661144,1724404047229,-451.01462706,0.00012782,2]
[335661145,1724404047258,-1162.74720417,0.00012782,2]
[335661146,1724404047280,-267.71013995,0.00012782,2]
[335661149,1724404149122,-2143.22745307,0.00012629,2]
[335661150,1724404149143,-2713.66408099,0.00012779,2]
[335661151,1724404149168,-300.0,0.00012781,2]
[335661152,1724404149189,-7712.92126165,0.00012782,2]
[335661153,1724404149210,-154.72922386,0.00012782,2]
[335661154,1724404149232,-154.72922386,0.00012782,2]
[335661155,1724404149254,-157.828094,0.00012815,2]
[335661156,1724404149275,-780.35335208,0.00012886,2]
[335661157,1724404149296,-154.91464861,0.00012886,2]
[335661158,1724404149319,-811.1651197,0.00012898,2]
[335661159,1724404149342,-602.12270351,0.00012898,2]
[335661160,1724404149363,-934.16422127,0.00012934,2]
[335661161,1724404149385,-817.69256856,0.00012934,2]
[335661162,1724404149408,-154.72922386,0.00012934,2]
[335661163,1724404149434,-371.27166616,0.00012971,2]
[335661164,1724404149458,-898.92251749,0.00012971,2]
[335661165,1724404149479,-159.32680748,0.00012971,2]
[335661166,1724404149500,-256.31582917,0.00012971,2]
[335661167,1724404149520,-811.71027722,0.00012971,2]
[335661168,1724404149540,-811.71027722,0.00012985,2]
[335661169,1724404149561,-404.59278011,0.00012985,2]
[335661170,1724404149581,-155.6116134,0.00012985,2]
[335661171,1724404149603,-301.50833509,0.00012985,2]
[335661172,1724404149624,-154.72922386,0.00012985,2]
[335661173,1724404149645,-422.40164092,0.00012985,2]
[335661174,1724404149681,-320.33274363,0.00012985,2]
[335661175,1724404149706,-156.88380059,0.00012985,2]
[335661176,1724404149729,-154.79103211,0.00012985,2]
[335661177,1724404149756,-493.52644239,0.00012985,2]
[335661178,1724404149784,-544.22652236,0.00012985,2]
[335661179,1724404149807,-265.08657754,0.00012989,2]